[Event "Early-Titled-Tuesday-Blitz-April-16-2024"]
[Site "Chess.com"]
[Date "2024.04.16"]
[Round "4"]
[White "Zarinur"]
[Black "DarkAlekhine"]
[Result "1-0"]
[WhiteElo "2514"]
[BlackElo "2743"]
[TimeControl "180+1"]
[EndTime "8:40:24 PDT"]
[Termination "Zarinur won on time"]

1. e4 {[%clk 0:03:00.9]} 1... c5 {[%clk 0:02:58.5]} 2. Nf3 {[%clk 0:03:00]} 2...
d6 {[%clk 0:02:58.6]} 3. Bb5+ {[%clk 0:02:59.1]} 3... Nd7 {[%clk 0:02:58]} 4. d4
{[%clk 0:02:57.3]} 4... cxd4 {[%clk 0:02:57.9]} 5. Qxd4 {[%clk 0:02:58.2]} 5...
a6 {[%clk 0:02:58.4]} 6. Bxd7+ {[%clk 0:02:58.7]} 6... Bxd7 {[%clk 0:02:59.3]}
7. O-O {[%clk 0:02:58.8]} 7... Rc8 {[%clk 0:02:57.8]} 8. c4 {[%clk 0:02:55.9]}
8... e5 {[%clk 0:02:56.3]} 9. Qd3 {[%clk 0:02:54.5]} 9... b5 {[%clk 0:02:56.9]}
10. Na3 {[%clk 0:02:50.5]} 10... Qb6 {[%clk 0:02:53.2]} 11. Be3 {[%clk
0:02:20.8]} 11... Qb7 {[%clk 0:02:52.8]} 12. cxb5 {[%clk 0:02:20.1]} 12... axb5
{[%clk 0:02:51.9]} 13. Rfe1 {[%clk 0:02:20.4]} 13... h6 {[%clk 0:02:47.1]} 14.
Bd2 {[%clk 0:02:15.4]} 14... Nf6 {[%clk 0:02:36]} 15. Bb4 {[%clk 0:02:13.3]}
15... Rd8 {[%clk 0:02:23.8]} 16. Nb1 {[%clk 0:01:54.1]} 16... Be7 {[%clk
0:02:04.4]} 17. Nc3 {[%clk 0:01:53.3]} 17... O-O {[%clk 0:02:02.4]} 18. Nxe5
{[%clk 0:01:40.1]} 18... Be6 {[%clk 0:01:40.1]} 19. Qxb5 {[%clk 0:01:28]} 19...
Qc7 {[%clk 0:00:27.8]} 20. Ba5 {[%clk 0:01:10.1]} 20... Qc8 {[%clk 0:00:12.2]}
21. Bxd8 {[%clk 0:01:09.1]} 21... Bxd8 {[%clk 0:00:12]} 22. Nf3 {[%clk
0:00:59.9]} 22... Qa8 {[%clk 0:00:11.5]} 23. a4 {[%clk 0:00:50.6]} 23... Bc7
{[%clk 0:00:10.3]} 24. Reb1 {[%clk 0:00:34.6]} 24... Rb8 {[%clk 0:00:10.6]} 25.
Qe2 {[%clk 0:00:33.2]} 25... Bb6 {[%clk 0:00:10]} 26. h3 {[%clk 0:00:27.7]}
26... Nh5 {[%clk 0:00:09.3]} 27. b4 {[%clk 0:00:26]} 27... Nf4 {[%clk
0:00:09.1]} 28. Qd2 {[%clk 0:00:25.7]} 28... g5 {[%clk 0:00:07.2]} 29. a5 {[%clk
0:00:25.4]} 29... Ba7 {[%clk 0:00:07.5]} 30. b5 {[%clk 0:00:25]} 30... Bc5
{[%clk 0:00:07.6]} 31. Na4 {[%clk 0:00:23.1]} 31... Qxe4 {[%clk 0:00:04.3]} 32.
Nxc5 {[%clk 0:00:22.8]} 32... dxc5 {[%clk 0:00:05.2]} 33. a6 {[%clk 0:00:20.7]}
33... Bxh3 {[%clk 0:00:04.3]} 34. Re1 {[%clk 0:00:18.8]} 34... Qf5 {[%clk
0:00:03.3]} 35. a7 {[%clk 0:00:18.5]} 35... Ra8 {[%clk 0:00:02.6]} 36. Nh2
{[%clk 0:00:07.8]} 36... Bxg2 {[%clk 0:00:02.5]} 37. Qe3 {[%clk 0:00:06.9]}
37... Bd5 {[%clk 0:00:02.5]} 38. Qg3 {[%clk 0:00:05.7]} 38... Nh3+ {[%clk
0:00:02.5]} 39. Kf1 {[%clk 0:00:05.9]} 39... Bc4+ {[%clk 0:00:02.9]} 40. Re2
{[%clk 0:00:06.3]} 40... Nf4 {[%clk 0:00:03.1]} 41. Re1 {[%clk 0:00:03.3]} 41...
Nxe2 {[%clk 0:00:03]} 42. Rxe2 {[%clk 0:00:03.8]} 42... Bxe2+ {[%clk 0:00:02.5]}
43. Kxe2 {[%clk 0:00:04]} 43... Qe6+ {[%clk 0:00:03.4]} 44. Kf1 {[%clk
0:00:03.3]} 44... Qc4+ {[%clk 0:00:03.1]} 45. Kg1 {[%clk 0:00:02.7]} 45... Qxb5
{[%clk 0:00:00.9]} 46. Qc7 {[%clk 0:00:03.3]} 1-0

[Event "Early-Titled-Tuesday-Blitz-April-16-2024"]
[Site "Chess.com"]
[Date "2024.04.16"]
[Round "4"]
[White "Cheer_Down"]
[Black "Nikolakis2014"]
[Result "0-1"]
[WhiteElo "2495"]
[BlackElo "2730"]
[TimeControl "180+1"]
[EndTime "8:40:24 PDT"]
[Termination "Nikolakis2014 won by resignation"]

1. e4 {[%clk 0:03:00.9]} 1... c5 {[%clk 0:02:59.5]} 2. Nf3 {[%clk 0:03:00.7]}
2... Nc6 {[%clk 0:02:59.9]} 3. d4 {[%clk 0:03:00.2]} 3... cxd4 {[%clk 0:03:00]}
4. Nxd4 {[%clk 0:03:01.1]} 4... Nf6 {[%clk 0:03:00.2]} 5. Nc3 {[%clk 0:03:01.4]}
5... e5 {[%clk 0:03:00.5]} 6. Ndb5 {[%clk 0:03:01.6]} 6... d6 {[%clk 0:03:00.9]}
7. Bg5 {[%clk 0:03:01]} 7... a6 {[%clk 0:03:01.2]} 8. Na3 {[%clk 0:03:01.3]}
8... b5 {[%clk 0:03:01.4]} 9. Nd5 {[%clk 0:03:01.1]} 9... Be7 {[%clk 0:03:01.3]}
10. Bxf6 {[%clk 0:03:01.7]} 10... Bxf6 {[%clk 0:03:01.7]} 11. c3 {[%clk
0:03:02.4]} 11... Rb8 {[%clk 0:03:01.1]} 12. Nc2 {[%clk 0:02:58.1]} 12... Bg5
{[%clk 0:03:01.1]} 13. a4 {[%clk 0:02:44.3]} 13... bxa4 {[%clk 0:03:00.4]} 14.
Ncb4 {[%clk 0:02:44.5]} 14... Nxb4 {[%clk 0:03:00]} 15. cxb4 {[%clk 0:02:44.9]}
15... O-O {[%clk 0:02:59.8]} 16. Qxa4 {[%clk 0:02:32]} 16... Bb7 {[%clk
0:02:54.3]} 17. Bc4 {[%clk 0:02:30.6]} 17... Rc8 {[%clk 0:02:26.6]} 18. b3
{[%clk 0:02:25.8]} 18... Kh8 {[%clk 0:02:18]} 19. Qa5 {[%clk 0:02:19.4]} 19...
Bxd5 {[%clk 0:01:49.9]} 20. Qxd8 {[%clk 0:02:14.9]} 20... Bxd8 {[%clk
0:01:40.9]} 21. exd5 {[%clk 0:02:07.4]} 21... Rb8 {[%clk 0:01:39.2]} 22. Rxa6
{[%clk 0:02:05.2]} 22... Bb6 {[%clk 0:01:29.3]} 23. Ke2 {[%clk 0:02:00.3]} 23...
f5 {[%clk 0:01:29.2]} 24. Rha1 {[%clk 0:01:58.5]} 24... e4 {[%clk 0:01:28.4]}
25. g3 {[%clk 0:01:49.5]} 25... g5 {[%clk 0:01:26.8]} 26. Rg1 {[%clk 0:01:24.6]}
26... Kg7 {[%clk 0:01:25.2]} 27. h4 {[%clk 0:01:24.2]} 27... h6 {[%clk
0:01:24.8]} 28. hxg5 {[%clk 0:01:24.3]} 28... hxg5 {[%clk 0:01:24.7]} 29. Rh1
{[%clk 0:01:24.7]} 29... Rfe8 {[%clk 0:01:16.9]} 30. Raa1 {[%clk 0:01:18.6]}
30... Bd4 {[%clk 0:01:11.8]} 31. Ra6 {[%clk 0:01:15.5]} 31... Bb6 {[%clk
0:01:11.5]} 32. Raa1 {[%clk 0:01:10.5]} 32... Ra8 {[%clk 0:01:04.7]} 33. b5
{[%clk 0:01:05.8]} 33... Rxa1 {[%clk 0:00:55.4]} 34. Rxa1 {[%clk 0:01:05.1]}
34... Kf6 {[%clk 0:00:55.7]} 35. Ra6 {[%clk 0:01:03.5]} 35... Rb8 {[%clk
0:00:55.3]} 36. Ra1 {[%clk 0:01:00.2]} 36... Ke5 {[%clk 0:00:54.5]} 37. Rh1
{[%clk 0:00:58.8]} 37... Ra8 {[%clk 0:00:54.1]} 38. Rh5 {[%clk 0:00:55.2]} 38...
Ra2+ {[%clk 0:00:53.6]} 39. Kf1 {[%clk 0:00:46.2]} 39... Rxf2+ {[%clk
0:00:52.5]} 40. Ke1 {[%clk 0:00:46.7]} 40... e3 {[%clk 0:00:42.9]} 41. Rxg5
{[%clk 0:00:46.5]} 41... Kd4 {[%clk 0:00:42.2]} 42. Be2 {[%clk 0:00:35.5]} 42...
Kxd5 {[%clk 0:00:34.5]} 43. g4 {[%clk 0:00:33.4]} 43... Ke4 {[%clk 0:00:22.6]}
44. Rxf5 {[%clk 0:00:32.4]} 44... Rh2 {[%clk 0:00:22.7]} 45. Rf6 {[%clk
0:00:29.3]} 45... Rh1+ {[%clk 0:00:17]} 46. Bf1 {[%clk 0:00:28.4]} 46... Ba5+
{[%clk 0:00:15.6]} 47. Ke2 {[%clk 0:00:28.8]} 47... Rh2+ {[%clk 0:00:15.8]} 48.
Kd1 {[%clk 0:00:28.5]} 48... Rd2+ {[%clk 0:00:15.8]} 49. Kc1 {[%clk 0:00:28.8]}
49... e2 {[%clk 0:00:15.9]} 50. Bxe2 {[%clk 0:00:27.5]} 50... Rxe2 {[%clk
0:00:15.8]} 51. Re6+ {[%clk 0:00:23.7]} 51... Kd3 {[%clk 0:00:15.5]} 52. Rxe2
{[%clk 0:00:23.7]} 52... Kxe2 {[%clk 0:00:15.8]} 53. g5 {[%clk 0:00:24.3]} 53...
Bd2+ {[%clk 0:00:16]} 54. Kc2 {[%clk 0:00:24.4]} 54... Bxg5 {[%clk 0:00:16.2]}
55. Kc3 {[%clk 0:00:23.5]} 55... Ke3 {[%clk 0:00:13.3]} 56. b6 {[%clk
0:00:22.5]} 56... d5 {[%clk 0:00:13]} 57. b7 {[%clk 0:00:22.2]} 57... Bf4 {[%clk
0:00:12.9]} 58. Kb4 {[%clk 0:00:21.6]} 58... d4 {[%clk 0:00:13]} 0-1

[Event "Early-Titled-Tuesday-Blitz-April-16-2024"]
[Site "Chess.com"]
[Date "2024.04.16"]
[Round "4"]
[White "MathiasWomacka"]
[Black "andrew-blr"]
[Result "0-1"]
[WhiteElo "2484"]
[BlackElo "2662"]
[TimeControl "180+1"]
[EndTime "8:40:27 PDT"]
[Termination "andrew-blr won on time"]

1. e4 {[%clk 0:03:00.9]} 1... c5 {[%clk 0:02:59.9]} 2. Nf3 {[%clk 0:03:00.5]}
2... e6 {[%clk 0:03:00.3]} 3. d4 {[%clk 0:03:00.6]} 3... cxd4 {[%clk 0:03:00.7]}
4. Nxd4 {[%clk 0:03:01.4]} 4... Bc5 {[%clk 0:03:00.8]} 5. Nc3 {[%clk 0:02:58.4]}
5... Qb6 {[%clk 0:03:00.2]} 6. Na4 {[%clk 0:02:57.9]} 6... Qa5+ {[%clk
0:03:00.3]} 7. c3 {[%clk 0:02:56.9]} 7... Bxd4 {[%clk 0:03:00.1]} 8. Qxd4 {[%clk
0:02:57.3]} 8... Nf6 {[%clk 0:02:56.6]} 9. Nc5 {[%clk 0:02:56.1]} 9... Nc6
{[%clk 0:02:54.4]} 10. Qd6 {[%clk 0:02:55.8]} 10... Qd8 {[%clk 0:02:47.5]} 11.
e5 {[%clk 0:02:45.4]} 11... Ng4 {[%clk 0:02:21.4]} 12. Bf4 {[%clk 0:02:41.8]}
12... f6 {[%clk 0:02:10.2]} 13. exf6 {[%clk 0:02:27.8]} 13... Qxf6 {[%clk
0:02:09.6]} 14. Be2 {[%clk 0:02:12.2]} 14... e5 {[%clk 0:01:47.4]} 15. Ne4
{[%clk 0:01:56.5]} 15... Qxf4 {[%clk 0:01:28.9]} 16. Qd3 {[%clk 0:01:31.5]}
16... d5 {[%clk 0:00:52.5]} 17. Qxd5 {[%clk 0:01:29]} 17... Nf6 {[%clk
0:00:51.3]} 18. Nxf6+ {[%clk 0:01:27.3]} 18... Qxf6 {[%clk 0:00:50.3]} 19. O-O-O
{[%clk 0:01:15.7]} 19... Be6 {[%clk 0:00:43.9]} 20. Qb5 {[%clk 0:01:15.4]} 20...
Qe7 {[%clk 0:00:36.7]} 21. Bf3 {[%clk 0:01:07.9]} 21... O-O {[%clk 0:00:31.1]}
22. Bxc6 {[%clk 0:01:01.3]} 22... bxc6 {[%clk 0:00:31.3]} 23. Qxe5 {[%clk
0:01:01.6]} 23... Rf5 {[%clk 0:00:24.5]} 24. Qe3 {[%clk 0:00:56.2]} 24... Qg5
{[%clk 0:00:23.1]} 25. Rhe1 {[%clk 0:00:21.8]} 25... Bxa2 {[%clk 0:00:21.1]} 26.
Qxg5 {[%clk 0:00:15.4]} 26... Rxg5 {[%clk 0:00:20.9]} 27. g3 {[%clk 0:00:16.3]}
27... Rf5 {[%clk 0:00:20.8]} 28. f4 {[%clk 0:00:15.6]} 28... Bd5 {[%clk
0:00:19.7]} 29. Re7 {[%clk 0:00:14.6]} 29... Rf7 {[%clk 0:00:19.6]} 30. Re5
{[%clk 0:00:13.7]} 30... Rff8 {[%clk 0:00:18.9]} 31. Kc2 {[%clk 0:00:13.3]}
31... Rfe8 {[%clk 0:00:19.1]} 32. Rde1 {[%clk 0:00:12.4]} 32... Rxe5 {[%clk
0:00:19.2]} 33. Rxe5 {[%clk 0:00:13.3]} 33... Kf7 {[%clk 0:00:19.7]} 34. b3
{[%clk 0:00:13.8]} 34... Re8 {[%clk 0:00:18.3]} 35. Rf5+ {[%clk 0:00:11.4]}
35... Kg6 {[%clk 0:00:16.6]} 36. Rg5+ {[%clk 0:00:11.5]} 36... Kf6 {[%clk
0:00:17]} 37. c4 {[%clk 0:00:12.4]} 37... Be6 {[%clk 0:00:16.5]} 38. Kc3 {[%clk
0:00:12.5]} 38... Bf5 {[%clk 0:00:15.3]} 39. g4 {[%clk 0:00:12.1]} 39... Be4
{[%clk 0:00:15.2]} 40. Ra5 {[%clk 0:00:11.4]} 40... Re7 {[%clk 0:00:15.4]} 41.
Kd4 {[%clk 0:00:11]} 41... h6 {[%clk 0:00:14.1]} 42. h4 {[%clk 0:00:10.1]} 42...
Bf3 {[%clk 0:00:13.9]} 43. g5+ {[%clk 0:00:09.9]} 43... hxg5 {[%clk 0:00:14.1]}
44. hxg5+ {[%clk 0:00:10.8]} 44... Kg6 {[%clk 0:00:14.4]} 45. Kc5 {[%clk
0:00:11.1]} 45... Rf7 {[%clk 0:00:10.7]} 46. b4 {[%clk 0:00:07.4]} 46... Kf5
{[%clk 0:00:10.9]} 47. Kd6+ {[%clk 0:00:04.3]} 47... Kxf4 {[%clk 0:00:11.3]} 48.
g6 {[%clk 0:00:04.3]} 48... Rb7 {[%clk 0:00:09.9]} 0-1

[Event "Early-Titled-Tuesday-Blitz-April-16-2024"]
[Site "Chess.com"]
[Date "2024.04.16"]
[Round "4"]
[White "ural58"]
[Black "rhwr"]
[Result "0-1"]
[WhiteElo "2470"]
[BlackElo "2281"]
[TimeControl "180+1"]
[EndTime "8:40:30 PDT"]
[Termination "rhwr won by checkmate"]

1. e4 {[%clk 0:03:00.9]} 1... c5 {[%clk 0:03:00.1]} 2. b3 {[%clk 0:02:57.2]}
2... e6 {[%clk 0:02:58.6]} 3. Nf3 {[%clk 0:02:52.6]} 3... d5 {[%clk 0:02:58.6]}
4. Bb5+ {[%clk 0:02:36.6]} 4... Bd7 {[%clk 0:02:56.9]} 5. Qe2 {[%clk 0:02:31.2]}
5... dxe4 {[%clk 0:02:46]} 6. Ne5 {[%clk 0:02:29.2]} 6... Nf6 {[%clk 0:02:37.2]}
7. Nxd7 {[%clk 0:02:24]} 7... Nbxd7 {[%clk 0:02:35.9]} 8. Bb2 {[%clk 0:02:20.8]}
8... a6 {[%clk 0:02:30.8]} 9. Bxf6 {[%clk 0:02:19.4]} 9... gxf6 {[%clk
0:02:21.2]} 10. Bxd7+ {[%clk 0:02:16.5]} 10... Qxd7 {[%clk 0:02:21.5]} 11. Qxe4
{[%clk 0:02:16]} 11... Qd5 {[%clk 0:02:13]} 12. Nc3 {[%clk 0:02:14.6]} 12...
Qxe4+ {[%clk 0:02:12.6]} 13. Nxe4 {[%clk 0:02:15.3]} 13... Be7 {[%clk
0:02:13.2]} 14. O-O-O {[%clk 0:02:12.7]} 14... f5 {[%clk 0:02:12.3]} 15. Nc3
{[%clk 0:02:10.8]} 15... O-O-O {[%clk 0:02:07.2]} 16. g3 {[%clk 0:02:03.9]}
16... b5 {[%clk 0:02:04.1]} 17. a4 {[%clk 0:02:02.3]} 17... b4 {[%clk
0:02:03.8]} 18. Ne2 {[%clk 0:02:01.8]} 18... Bf6 {[%clk 0:02:02.2]} 19. f4
{[%clk 0:01:58.7]} 19... Kc7 {[%clk 0:02:01.1]} 20. d3 {[%clk 0:01:51]} 20... h5
{[%clk 0:01:51.3]} 21. h4 {[%clk 0:01:50.3]} 21... Rhg8 {[%clk 0:01:48.9]} 22.
Rhf1 {[%clk 0:01:46.3]} 22... Kc6 {[%clk 0:01:41.8]} 23. Rf3 {[%clk 0:01:45.3]}
23... Rg7 {[%clk 0:01:31.5]} 24. Kd2 {[%clk 0:01:44.4]} 24... Rdg8 {[%clk
0:01:19.8]} 25. Rh1 {[%clk 0:01:39.9]} 25... Bd4 {[%clk 0:01:08.8]} 26. Rh3
{[%clk 0:01:36.7]} 26... Kd5 {[%clk 0:01:01.7]} 27. c3 {[%clk 0:01:32.9]} 27...
bxc3+ {[%clk 0:01:00.8]} 28. Nxc3+ {[%clk 0:01:31.9]} 28... Bxc3+ {[%clk
0:01:01.2]} 29. Kxc3 {[%clk 0:01:32.1]} 29... f6 {[%clk 0:01:01.4]} 30. b4
{[%clk 0:01:25]} 30... Rb7 {[%clk 0:00:54.8]} 31. bxc5 {[%clk 0:01:21.7]} 31...
Kxc5 {[%clk 0:00:55.2]} 32. Re3 {[%clk 0:01:21]} 32... Kd5 {[%clk 0:00:55.2]}
33. Re1 {[%clk 0:00:59.1]} 33... Rc8+ {[%clk 0:00:55.3]} 34. Kd2 {[%clk
0:00:59.2]} 34... Rb2+ {[%clk 0:00:55.8]} 35. Ke3 {[%clk 0:00:59.2]} 35... Rcc2
{[%clk 0:00:50.3]} 36. Rhh1 {[%clk 0:00:59]} 36... Rg2 {[%clk 0:00:45]} 37. Rhg1
{[%clk 0:00:57.8]} 37... Rgc2 {[%clk 0:00:41.6]} 38. Rgf1 {[%clk 0:00:57.6]}
38... Ra2 {[%clk 0:00:40.8]} 39. Ra1 {[%clk 0:00:49.9]} 39... Rab2 {[%clk
0:00:39.4]} 40. Rae1 {[%clk 0:00:43.1]} 40... a5 {[%clk 0:00:38.6]} 41. Kf3
{[%clk 0:00:41.9]} 41... e5 {[%clk 0:00:35.6]} 42. fxe5 {[%clk 0:00:40.4]} 42...
fxe5 {[%clk 0:00:36.5]} 43. Ke3 {[%clk 0:00:39.5]} 43... Rg2 {[%clk 0:00:30.6]}
44. Rxf5 {[%clk 0:00:36.8]} 44... Rxg3+ {[%clk 0:00:30.1]} 45. Rf3 {[%clk
0:00:37.2]} 45... Rxf3+ {[%clk 0:00:25.6]} 46. Kxf3 {[%clk 0:00:37.3]} 46... Rb4
{[%clk 0:00:25.2]} 47. Rg1 {[%clk 0:00:23.6]} 47... Rxh4 {[%clk 0:00:23.5]} 48.
Rg5 {[%clk 0:00:23.5]} 48... Kd4 {[%clk 0:00:18.7]} 49. Ke2 {[%clk 0:00:23.5]}
49... Rh2+ {[%clk 0:00:17.7]} 50. Ke1 {[%clk 0:00:23]} 50... h4 {[%clk
0:00:14.8]} 51. Rg8 {[%clk 0:00:18.9]} 51... Kxd3 {[%clk 0:00:12.6]} 52. Ra8
{[%clk 0:00:17.3]} 52... e4 {[%clk 0:00:11.7]} 53. Rxa5 {[%clk 0:00:16.1]} 53...
Ke3 {[%clk 0:00:10.7]} 54. Kf1 {[%clk 0:00:13.8]} 54... h3 {[%clk 0:00:11.1]}
55. Rb5 {[%clk 0:00:12.6]} 55... Rh1# {[%clk 0:00:10.5]} 0-1

[Event "Early-Titled-Tuesday-Blitz-April-16-2024"]
[Site "Chess.com"]
[Date "2024.04.16"]
[Round "4"]
[White "mapleaff"]
[Black "HighLawView"]
[Result "0-1"]
[WhiteElo "2296"]
[BlackElo "2111"]
[TimeControl "180+1"]
[EndTime "8:40:30 PDT"]
[Termination "HighLawView won by checkmate"]

1. d4 {[%clk 0:02:28.4]} 1... d5 {[%clk 0:02:56.6]} 2. Bf4 {[%clk 0:02:28.2]}
2... Nf6 {[%clk 0:02:54.9]} 3. Nf3 {[%clk 0:02:28.4]} 3... c5 {[%clk 0:02:54.1]}
4. e3 {[%clk 0:02:28.9]} 4... e6 {[%clk 0:02:54.2]} 5. Nbd2 {[%clk 0:02:28.7]}
5... Bd6 {[%clk 0:02:50.9]} 6. Bg3 {[%clk 0:02:27.4]} 6... Qc7 {[%clk
0:02:49.5]} 7. Bxd6 {[%clk 0:02:08.5]} 7... Qxd6 {[%clk 0:02:48.6]} 8. Ne5
{[%clk 0:02:09]} 8... cxd4 {[%clk 0:02:36.9]} 9. exd4 {[%clk 0:02:08.9]} 9...
Qb4 {[%clk 0:02:36.7]} 10. Bd3 {[%clk 0:01:53]} 10... Qxd4 {[%clk 0:02:29.2]}
11. Ndf3 {[%clk 0:01:52.1]} 11... Qxb2 {[%clk 0:02:27]} 12. O-O {[%clk
0:01:51.6]} 12... O-O {[%clk 0:02:23.6]} 13. Rb1 {[%clk 0:01:48.6]} 13... Qc3
{[%clk 0:02:18.5]} 14. Rb3 {[%clk 0:01:47.5]} 14... Qc7 {[%clk 0:02:16.6]} 15.
Qe2 {[%clk 0:01:32.9]} 15... Nc6 {[%clk 0:02:05.6]} 16. Nxc6 {[%clk 0:01:07.4]}
16... bxc6 {[%clk 0:01:59.5]} 17. Ne5 {[%clk 0:01:00.4]} 17... c5 {[%clk
0:01:55.2]} 18. c4 {[%clk 0:01:00]} 18... Ba6 {[%clk 0:01:43.9]} 19. Rc1 {[%clk
0:00:41.4]} 19... Rfe8 {[%clk 0:01:26.5]} 20. g4 {[%clk 0:00:40.1]} 20... dxc4
{[%clk 0:01:14.1]} 21. Nxc4 {[%clk 0:00:31.8]} 21... Qf4 {[%clk 0:01:00.3]} 22.
Nd2 {[%clk 0:00:24.8]} 22... Bxd3 {[%clk 0:00:57.3]} 23. Rxd3 {[%clk 0:00:25.7]}
23... Nxg4 {[%clk 0:00:52.7]} 24. Nf3 {[%clk 0:00:22.1]} 24... Rac8 {[%clk
0:00:43]} 25. Rcd1 {[%clk 0:00:17.4]} 25... e5 {[%clk 0:00:41.4]} 26. h3 {[%clk
0:00:17]} 26... e4 {[%clk 0:00:35.9]} 27. Re3 {[%clk 0:00:17]} 27... Nf6 {[%clk
0:00:31.2]} 28. Ne1 {[%clk 0:00:16.4]} 28... Rcd8 {[%clk 0:00:24.2]} 29. Rc1
{[%clk 0:00:14.2]} 29... Nd5 {[%clk 0:00:19.5]} 30. Ng2 {[%clk 0:00:10.8]} 30...
Qg5 {[%clk 0:00:18.2]} 31. h4 {[%clk 0:00:10.7]} 31... Qh6 {[%clk 0:00:17.1]}
32. Rc4 {[%clk 0:00:09.8]} 32... Nxe3 {[%clk 0:00:16.3]} 33. Nxe3 {[%clk
0:00:10.7]} 33... Qg6+ {[%clk 0:00:15.9]} 34. Kh2 {[%clk 0:00:09.5]} 34... Qd6+
{[%clk 0:00:15.5]} 35. Kg2 {[%clk 0:00:09.5]} 35... Qf4 {[%clk 0:00:15.3]} 36.
Rxc5 {[%clk 0:00:08.3]} 36... Rd6 {[%clk 0:00:15]} 37. Rg5 {[%clk 0:00:07.9]}
37... h6 {[%clk 0:00:14.3]} 38. Rg3 {[%clk 0:00:07.9]} 38... Qxh4 {[%clk
0:00:14.3]} 39. Qc4 {[%clk 0:00:07.1]} 39... Qf4 {[%clk 0:00:11.2]} 40. Qc3
{[%clk 0:00:05.6]} 40... Rf6 {[%clk 0:00:08.4]} 41. Qd4 {[%clk 0:00:02.9]} 41...
Qxf2+ {[%clk 0:00:07.8]} 42. Kh3 {[%clk 0:00:02.9]} 42... Rg6 {[%clk 0:00:07.3]}
43. Rxg6 {[%clk 0:00:02.9]} 43... fxg6 {[%clk 0:00:08]} 44. Qd5+ {[%clk
0:00:03.5]} 44... Kh7 {[%clk 0:00:07.8]} 45. Ng4 {[%clk 0:00:04.4]} 45... Qf3+
{[%clk 0:00:06.7]} 46. Kh4 {[%clk 0:00:05]} 46... g5+ {[%clk 0:00:06.1]} 47. Kh5
{[%clk 0:00:05.7]} 47... Qh3# {[%clk 0:00:05.8]} 0-1

[Event "Early-Titled-Tuesday-Blitz-April-16-2024"]
[Site "Chess.com"]
[Date "2024.04.16"]
[Round "4"]
[White "masterofpuppets2"]
[Black "Kostukov_Alex"]
[Result "0-1"]
[WhiteElo "2471"]
[BlackElo "2288"]
[TimeControl "180+1"]
[EndTime "8:40:32 PDT"]
[Termination "Kostukov_Alex won by resignation"]

1. d4 {[%clk 0:03:00.9]} 1... g6 {[%clk 0:02:57.4]} 2. c4 {[%clk 0:02:59.6]}
2... Bg7 {[%clk 0:02:54.6]} 3. e4 {[%clk 0:02:58.1]} 3... d6 {[%clk 0:02:53.8]}
4. Nc3 {[%clk 0:02:57.9]} 4... e5 {[%clk 0:02:54.1]} 5. d5 {[%clk 0:02:57.9]}
5... f5 {[%clk 0:02:53.3]} 6. exf5 {[%clk 0:02:50.9]} 6... Bxf5 {[%clk
0:02:51.9]} 7. Bd3 {[%clk 0:02:47.7]} 7... Nf6 {[%clk 0:02:50]} 8. Nge2 {[%clk
0:02:43]} 8... O-O {[%clk 0:02:49.2]} 9. Ng3 {[%clk 0:02:40.8]} 9... Bxd3 {[%clk
0:02:37.7]} 10. Qxd3 {[%clk 0:02:41.7]} 10... Nbd7 {[%clk 0:02:34.8]} 11. Bg5
{[%clk 0:02:35.5]} 11... Nc5 {[%clk 0:02:33.7]} 12. Qc2 {[%clk 0:02:30.9]} 12...
a5 {[%clk 0:02:29.6]} 13. O-O-O {[%clk 0:02:26.5]} 13... Qd7 {[%clk 0:02:26.4]}
14. f3 {[%clk 0:02:21.1]} 14... a4 {[%clk 0:02:24.5]} 15. Kb1 {[%clk 0:02:20.7]}
15... a3 {[%clk 0:02:10.8]} 16. b3 {[%clk 0:02:19]} 16... Ra6 {[%clk 0:01:34.3]}
17. Bxf6 {[%clk 0:02:01.6]} 17... Bxf6 {[%clk 0:01:27.5]} 18. Nge4 {[%clk
0:02:01.9]} 18... Nxe4 {[%clk 0:01:10.3]} 19. Nxe4 {[%clk 0:02:02.8]} 19... Bg7
{[%clk 0:00:55.5]} 20. h4 {[%clk 0:02:02.5]} 20... h6 {[%clk 0:00:41.7]} 21. Nc3
{[%clk 0:01:35.5]} 21... e4 {[%clk 0:00:29.1]} 22. Nxe4 {[%clk 0:01:33]} 22...
Qf5 {[%clk 0:00:26.2]} 23. Rd3 {[%clk 0:01:10.3]} 23... Raa8 {[%clk 0:00:15.1]}
24. h5 {[%clk 0:01:00.2]} 24... g5 {[%clk 0:00:14.4]} 25. Rhd1 {[%clk 0:00:55]}
25... Rae8 {[%clk 0:00:13.9]} 26. b4 {[%clk 0:00:45.3]} 26... Rxe4 {[%clk
0:00:13.6]} 27. fxe4 {[%clk 0:00:45.8]} 27... Qxe4 {[%clk 0:00:14.5]} 28. Rf3
{[%clk 0:00:38.8]} 28... Qe5 {[%clk 0:00:06.4]} 29. Rxf8+ {[%clk 0:00:38.7]}
29... Kxf8 {[%clk 0:00:05.7]} 30. Qb3 {[%clk 0:00:33.3]} 30... Qe4+ {[%clk
0:00:02.7]} 31. Qd3 {[%clk 0:00:32.5]} 31... Qe5 {[%clk 0:00:02.3]} 32. Rd2
{[%clk 0:00:17.9]} 32... Qa1+ {[%clk 0:00:02.1]} 33. Kc2 {[%clk 0:00:18]} 33...
Qxa2+ {[%clk 0:00:02.7]} 34. Kd1 {[%clk 0:00:18.9]} 34... Qa1+ {[%clk
0:00:02.6]} 35. Ke2 {[%clk 0:00:19.2]} 35... a2 {[%clk 0:00:03]} 36. Qf5+ {[%clk
0:00:18.6]} 36... Kg8 {[%clk 0:00:02.3]} 37. Qe6+ {[%clk 0:00:02.8]} 37... Kh7
{[%clk 0:00:02.2]} 38. Kf3 {[%clk 0:00:03.7]} 38... Qe5 {[%clk 0:00:01.5]} 39.
Qxe5 {[%clk 0:00:03.4]} 39... Bxe5 {[%clk 0:00:02.1]} 40. Rd1 {[%clk 0:00:03.9]}
40... a1=Q {[%clk 0:00:02.2]} 41. Rxa1 {[%clk 0:00:04.5]} 41... Bxa1 {[%clk
0:00:03]} 42. c5 {[%clk 0:00:05.4]} 42... Be5 {[%clk 0:00:03.2]} 43. c6 {[%clk
0:00:05.5]} 43... bxc6 {[%clk 0:00:03.5]} 44. dxc6 {[%clk 0:00:06.4]} 44... Bd4
{[%clk 0:00:04.1]} 45. b5 {[%clk 0:00:07.3]} 45... Bb6 {[%clk 0:00:04.9]} 46.
Ke4 {[%clk 0:00:08.2]} 46... Kg7 {[%clk 0:00:04.9]} 47. Kf5 {[%clk 0:00:09.1]}
47... Kf7 {[%clk 0:00:05.1]} 48. g3 {[%clk 0:00:09.2]} 48... Bc5 {[%clk
0:00:05.6]} 49. Ke4 {[%clk 0:00:08.9]} 49... Kf6 {[%clk 0:00:05.6]} 50. g4
{[%clk 0:00:09.7]} 50... Bb6 {[%clk 0:00:05.8]} 51. Kd5 {[%clk 0:00:10]} 51...
Ba5 {[%clk 0:00:05.1]} 52. Ke4 {[%clk 0:00:10.2]} 52... Ke6 {[%clk 0:00:05]} 53.
Kd4 {[%clk 0:00:11.1]} 53... Bb6+ {[%clk 0:00:04.9]} 54. Ke4 {[%clk 0:00:11.4]}
54... d5+ {[%clk 0:00:05.6]} 55. Kd3 {[%clk 0:00:11]} 55... Ke5 {[%clk
0:00:06.3]} 56. Ke2 {[%clk 0:00:11]} 56... Kf4 {[%clk 0:00:06.5]} 57. Kd3 {[%clk
0:00:11.6]} 57... Kxg4 {[%clk 0:00:06.6]} 0-1